fUST/lending_fUST_20240430
["ID","MTS","AMOUNT","RATE_DAILY","PERIOD"]
[324939101,1714450238748,-31302.58393277,0.000275,2]
[324939102,1714450238758,-249.949879,0.000275,2]
[324939104,1714450238767,-152.659095,0.000275,2]
[324939106,1714450238777,-151.0,0.000275,2]
[324939108,1714450238786,-157.280179,0.000275,2]
[324939110,1714450238795,-152.579304,0.000275,2]
[324939112,1714450238805,-151.0,0.000275,2]
[324939114,1714450238814,-156.949248,0.000275,2]
[324939116,1714450238823,-151.0,0.000275,2]
[324939118,1714450238832,-151.0,0.000275,2]
[324939120,1714450238842,-151.001391,0.000275,2]
[324939122,1714450238851,-328.143735,0.000275,2]
[324939124,1714450238860,-328.143735,0.000275,2]
[324939126,1714450238869,-289.43784,0.000275,2]
[324939128,1714450238878,-289.43784,0.000275,2]
[324939130,1714450238887,-151.0,0.000275,2]
[324939132,1714450238896,-842.698217,0.000275,2]
[324939134,1714450238905,-842.698217,0.000275,2]
[324939136,1714450238914,-151.0,0.000275,2]
[324939138,1714450238923,-167.431856,0.000275,2]
[324939140,1714450238932,-167.431856,0.000275,2]
[324939142,1714450238942,-151.0,0.000275,2]
[324939144,1714450238951,-151.0,0.000275,2]
[324939146,1714450238960,-151.0,0.000275,2]
[324939148,1714450238968,-151.697529,0.000275,2]
[324939150,1714450238977,-570.761815,0.000275,2]
[324939152,1714450238987,-570.761815,0.000275,2]
[324939154,1714450238996,-151.0,0.000275,2]
[324939156,1714450239006,-794.491991,0.000275,2]
[324939158,1714450239015,-794.491991,0.000275,2]
[324939160,1714450239026,-2024.25841782,0.0002751,2]
[324939162,1714450239035,-152.7987176,0.00027556,2]
[324939163,1714450239046,-153.0,0.00027562,2]
[324939165,1714450239057,-306.6757428,0.00027562,2]
[324939167,1714450239066,-153.0,0.00027562,2]
[324939169,1714450239075,-140633.24846518,0.0002763,2]
[324939171,1714450239085,-151.858681,0.0002763,2]
[324939173,1714450239095,-151.0,0.0002763,2]
[324939175,1714450239104,-151.0,0.0002763,2]
[324939177,1714450239113,-154.295428,0.0002763,2]
[324939179,1714450239123,-151.0,0.0002763,2]
[324939181,1714450239133,-198.916331,0.0002763,2]
[324939183,1714450239142,-328.143735,0.0002763,2]
[324939185,1714450239151,-328.143735,0.0002763,2]
[324939187,1714450239162,-151.0,0.0002763,2]
[324939189,1714450239171,-289.43784,0.0002763,2]
[324939191,1714450239180,-289.43784,0.0002763,2]
[324939193,1714450239189,-151.0,0.0002763,2]
[324939195,1714450239198,-842.698217,0.0002763,2]
[324939197,1714450239207,-842.698217,0.0002763,2]
[324939199,1714450239216,-151.0,0.0002763,2]
[324939201,1714450239226,-167.431856,0.0002763,2]
[324939203,1714450239235,-167.431856,0.0002763,2]
[324939205,1714450239250,-292.839926,0.0002763,2]
[324939207,1714450239264,-151.0,0.0002763,2]
[324939209,1714450239273,-151.0,0.0002763,2]
[324939211,1714450239282,-570.761815,0.0002763,2]
[324939213,1714450239291,-570.761815,0.0002763,2]
[324939215,1714450239300,-290.40073,0.0002763,2]
[324939217,1714450239309,-794.491991,0.0002763,2]
[324939219,1714450239317,-794.491991,0.0002763,2]
[324939221,1714450239326,-2024.25841782,0.0002764,2]
[324939222,1714450239335,-1000.0,0.000277,2]
[324939224,1714450239344,-152.7987176,0.00027717,2]
[324939226,1714450239353,-155.17015192,0.00027733,2]
[324939228,1714450239362,-2024.25841782,0.0002777,2]
[324939230,1714450239371,-44444.0,0.000279,3]
[324939232,1714450239381,-151.0,0.000279,2]
[324939234,1714450239390,-328.143735,0.000279,2]
[324939236,1714450239400,-328.143735,0.000279,2]
[324939238,1714450239409,-151.0,0.000279,2]
[324939240,1714450239419,-289.43784,0.000279,2]
[324939243,1714450239429,-289.43784,0.000279,2]
[324939244,1714450239438,-151.0,0.000279,2]
[324939246,1714450239447,-842.698217,0.000279,2]
[324939248,1714450239457,-842.698217,0.000279,2]
[324939251,1714450239466,-151.0,0.000279,2]
[324939254,1714450239475,-167.431856,0.000279,2]
[324939256,1714450239484,-167.431856,0.000279,2]
[324939260,1714450239493,-151.0,0.000279,2]
[324939263,1714450239502,-151.386942,0.000279,2]
[324939266,1714450239514,-2024.25841782,0.000279,2]
[324939269,1714450239523,-570.761815,0.000279,2]
[324939272,1714450239532,-570.761815,0.000279,2]
[324939275,1714450239542,-794.491991,0.000279,2]
[324939279,1714450239551,-794.491991,0.000279,2]
[324939281,1714450239560,-16891.9028354,0.00028,7]
[324939353,1714450240183,-968.708876,0.0002745,2]
[324939355,1714450240193,-754.55841667,0.000275,2]
[324939437,1714450243381,-214.15045933,0.000275,2]
[324939438,1714450243391,-684.24908986,0.0002763,2]
[324939457,1714450860599,300.0,0.00014728,2]
[324939458,1714450861195,420.0,0.00016201,2]
[324939459,1714450921602,300.0,0.00014728,2]
[324939460,1714450922464,420.0,0.00016123,2]
[324939462,1714451041428,257.0,0.00014728,2]
[324939755,1714451443291,-0.00129084,0.0001754,2]
[324939801,1714451453955,19193.57611322,0.00014728,2]
[324939802,1714451760499,300.0,0.00014728,2]
[324939803,1714451761124,420.0,0.00016201,2]
[324939804,1714451762008,300.0,0.00014728,2]
[324939805,1714451762767,420.0,0.00016123,2]
[324939806,1714451882216,300.0,0.00014728,2]
[324939807,1714451882971,285.0,0.00016123,2]
[324939809,1714452195558,234.3,0.00017,2]
[324939810,1714452260884,250.0,0.00016171,2]
[324939812,1714452303543,6300.12388678,0.00017,2]
[324939832,1714452632423,-691.98235383,0.00016103,2]
[324939833,1714452632435,-552.72494088,0.00016103,2]
[324939835,1714452632445,-534.602378,0.00016103,2]
[324939893,1714452638366,-500.0,0.00016102,2]
[324939902,1714452638443,-7374.43916616,0.00016102,2]
[324939904,1714452638453,-112.66835105,0.00016103,2]
[324939906,1714452638462,-300.0,0.00016104,2]
[324939908,1714452638471,-15674.62704148,0.00016104,2]
[324939910,1714452638480,-24900.0,0.00016105,2]
[324939912,1714452638489,-1879.86291368,0.00016885,2]
[324939914,1714452638498,-20197.66755439,0.00016886,2]
[324939916,1714452638507,-59218.78804834,0.00016887,2]
[324939918,1714452638517,-157.68134255,0.00017533,2]
[324939920,1714452638526,-155.21932607,0.00017534,2]
[324939922,1714452638535,-155.32168723,0.00017534,2]
[324939924,1714452638544,-420.0,0.00017715,2]
[324939926,1714452638553,-150.0,0.000189,2]
[324939928,1714452638562,-500.0,0.00019178,2]
[324939930,1714452638571,-500.0,0.00019178,2]
[324939932,1714452638580,-500.0,0.00019178,2]
[324939934,1714452638589,-500.0,0.00019178,2]
[324939936,1714452638598,-500.0,0.00019178,2]
[324939938,1714452638607,-522.1023658,0.00019178,2]
[324939940,1714452638616,-500.0,0.00019178,2]
[324939942,1714452638625,-500.0,0.00019178,2]
[324939944,1714452638634,-500.0,0.00019178,2]
[324939946,1714452638643,-2024.25841785,0.000192,2]
[324939948,1714452638652,-63383.08679289,0.000193,2]
[324939950,1714452638661,-151.214711,0.000193,2]
[324939952,1714452638670,-151.001391,0.000193,2]
[324939954,1714452638679,-587.0,0.00019486,2]
[324939956,1714452638688,-1342.82687775,0.0002,2]
[324939958,1714452638698,-2047.75242045,0.0002091,2]
[324939960,1714452638707,-2634.31068771,0.0002091,2]
[324939962,1714452638716,-155.08820925,0.00020911,2]
[324939964,1714452638725,-159.01440202,0.00020912,2]
[324939966,1714452638734,-585.29254496,0.00020912,2]
[324939968,1714452638743,-186.82331158,0.00020912,2]
[324939970,1714452638754,-551.34479575,0.00020912,2]
[324939972,1714452638764,-202.94276014,0.00020912,2]
[324939974,1714452638773,-2024.25841782,0.00021375,2]
[324939976,1714452638782,-823.0,0.00021435,2]
[324939978,1714452638792,-267.19,0.00021918,2]
[324939980,1714452638803,-157.742788,0.00022466,2]
[324939982,1714452638814,-271.140743,0.00022466,2]
[324939984,1714452638823,-268.947791,0.00022466,2]
[324939986,1714452638832,-2024.25841782,0.0002355,2]
[324939988,1714452638842,-150.0,0.000239,2]
[324939990,1714452638851,-778.80034092,0.00024,2]
[324939992,1714452638860,-154.16504668,0.00024581,2]
[324939994,1714452638869,-153.93008245,0.00024655,2]
[324939996,1714452638879,-299.38314638,0.00024664,2]
[324939998,1714452638890,-153.93008245,0.0002471,2]
[324940000,1714452638899,-299.38314638,0.00024772,2]
[324940002,1714452638908,-299.38314638,0.0002499,2]
[324940003,1714452638917,-155.088,0.00025,15]
[324940005,1714452638926,-158.18363338,0.0002519,2]
[324940007,1714452638935,-299.38314638,0.00025466,2]
[324940009,1714452638944,-2024.25841782,0.00025725,2]
[324940011,1714452638953,-289.43784,0.000259,2]
[324940014,1714452638964,-289.43784,0.000259,2]
[324940016,1714452638973,-945.259853,0.000259,2]
[324940018,1714452638983,-151.981463,0.000259,2]
[324940020,1714452638992,-945.259853,0.000259,2]
[324940021,1714452639002,-151.0,0.000259,2]
[324940023,1714452639013,-842.698217,0.000259,2]
[324940025,1714452639022,-335.693735,0.000259,2]
[324940028,1714452639031,-842.698217,0.000259,2]
[324940029,1714452639040,-335.693735,0.000259,2]
[324940032,1714452639050,-151.0,0.000259,2]
[324940033,1714452639192,-151.0,0.000259,2]
[324940034,1714452639202,-151.0,0.000259,2]
[324940035,1714452639211,-151.697529,0.000259,2]
[324940036,1714452639221,-570.761815,0.000259,2]
[324940037,1714452639230,-570.761815,0.000259,2]
[324940038,1714452639239,-155.17015192,0.00025999,2]
[324940039,1714452639248,-154.16504668,0.00026161,2]
[324940040,1714452639258,-151.0,0.00026161,2]
[324940042,1714452639270,-794.491991,0.00026161,2]
[324940043,1714452639279,-794.491991,0.00026161,2]
[324940045,1714452639288,-588.0,0.000263,2]
[324940047,1714452639297,-299.38314638,0.00026479,2]
[324940048,1714452639306,-547.40756288,0.00026598,2]
[324940049,1714452639315,-151.0,0.000266,2]
[324940051,1714452639324,-151.0,0.000266,2]
[324940052,1714452639334,-151.0,0.000266,2]
[324940053,1714452639344,-151.0,0.000266,2]
[324940054,1714452639353,-198.916331,0.000266,2]
[324940055,1714452639362,-151.0,0.000266,2]
[324940056,1714452639371,-299.38314638,0.00026722,2]
[324940057,1714452639381,-154.16504668,0.00026722,2]
[324940058,1714452639390,-154.16504668,0.00026794,2]
[324940059,1714452639400,-299.38314638,0.00026876,2]
[324940060,1714452639409,-158.0,0.000269,7]
[324940061,1714452639418,-620.1858182,0.00026962,2]
[324940062,1714452639427,-8529.21181525,0.00027,2]
[324940063,1714452639437,-151.0,0.00027,2]
[324940064,1714452639446,-151.0,0.00027,2]
[324940065,1714452639456,-152.659095,0.00027,2]
[324940066,1714452639465,-155.17015192,0.00027074,2]
[324940067,1714452639474,-155.17015192,0.00027099,2]
[324940068,1714452639483,-151.0,0.00027192,2]
[324940069,1714452639491,-151.0,0.00027192,2]
[324940070,1714452639500,-151.0,0.00027192,2]
[324940071,1714452639513,-570.761815,0.00027192,2]
[324940072,1714452639524,-570.761815,0.00027192,2]
[324940073,1714452639533,-436.25,0.00027192,2]
[324940074,1714452639542,-150.498,0.00027192,2]
[324940075,1714452639552,-211.042,0.00027192,2]
[324940076,1714452639561,-224.908,0.00027192,2]
[324940077,1714452639570,-1000.0,0.000272,2]
[324940078,1714452639579,-299.38314638,0.00027363,2]
[324940079,1714452639588,-166.666666,0.00027397,2]
[324940080,1714452639597,-197.53714358,0.000274,2]
[324940081,1714452639607,-289.43784,0.000274,2]
[324940082,1714452639617,-289.43784,0.000274,2]
[324940083,1714452639626,-945.259853,0.000274,2]
[324940084,1714452639635,-945.259853,0.000274,2]
[324940085,1714452639644,-151.0,0.000274,2]
[324940086,1714452639653,-842.698217,0.000274,2]
[324940087,1714452639662,-335.693735,0.000274,2]
[324940088,1714452639672,-842.698217,0.000274,2]
[324940089,1714452639681,-335.693735,0.000274,2]
[324940090,1714452639691,-151.0,0.000274,2]
[324940091,1714452639700,-151.0,0.000274,2]
[324940092,1714452639709,-167.431856,0.000274,2]
[324940093,1714452639719,-167.431856,0.000274,2]
[324940094,1714452639728,-154.295428,0.000274,2]
[324940095,1714452639737,-794.491991,0.000274,2]
[324940096,1714452639746,-794.491991,0.000274,2]
[324940097,1714452639755,-299.38314638,0.00027546,2]
[324940098,1714452639767,-1564.25196696,0.0002763,2]
[324940099,1714452639775,-2000.0,0.0002763,2]
[324940100,1714452639785,-756.81853789,0.0002763,2]
[324940101,1714452639794,-154.16504668,0.00027646,2]
[324940102,1714452639807,-151.0,0.00027662,2]
[324940103,1714452639815,-151.0,0.00027662,2]
[324940104,1714452639824,-151.0,0.00027662,2]
[324940105,1714452639834,-1000.0,0.000277,2]
[324940106,1714452639844,-299.38314638,0.00027733,2]
[324940107,1714452639853,-152.95,0.0002777,120]
[324940108,1714452639862,-155.17015192,0.00027823,2]
[324940109,1714452639872,-151.0,0.000279,2]
[324940110,1714452639882,-151.0,0.000279,2]
[324940111,1714452639892,-151.0,0.000279,2]
[324940112,1714452639901,-249.949879,0.000279,2]
[324940113,1714452639910,-156.949248,0.000279,2]
[324940114,1714452639919,-151.0,0.000279,2]
[324940115,1714452639927,-151.0,0.000279,2]
[324940116,1714452639939,-44444.0,0.000279,3]
[324940117,1714452639948,-151.858681,0.000279,2]
[324940118,1714452639958,-151.0,0.000279,2]
[324940119,1714452639968,-151.0,0.000279,2]
[324940120,1714452639977,-289.43784,0.000279,2]
[324940121,1714452639986,-289.43784,0.000279,2]
[324940122,1714452639995,-945.259853,0.000279,2]
[324940123,1714452640004,-945.259853,0.000279,2]
[324940124,1714452640017,-151.0,0.000279,2]
[324940125,1714452640026,-842.698217,0.000279,2]
[324940126,1714452640035,-335.693735,0.000279,2]
[324940127,1714452640044,-842.698217,0.000279,2]
[324940128,1714452640053,-335.693735,0.000279,2]
[324940129,1714452640062,-151.0,0.000279,2]
[324940130,1714452640071,-151.0,0.000279,2]
[324940131,1714452640081,-167.431856,0.000279,2]
[324940132,1714452640090,-167.431856,0.000279,2]
[324940133,1714452640099,-292.839926,0.000279,2]
[324940134,1714452640108,-151.0,0.000279,2]
[324940135,1714452640117,-151.386942,0.000279,2]
[324940136,1714452640127,-570.761815,0.000279,2]
[324940137,1714452640136,-570.761815,0.000279,2]
[324940138,1714452640145,-2024.25841782,0.000279,2]
[324940139,1714452640154,-794.491991,0.000279,2]
[324940141,1714452640164,-794.491991,0.000279,2]
[324940142,1714452640174,-4130.46627088,0.00028,7]
[324940143,1714452640350,-1851.78392373,0.00028,7]
[324940146,1714452640564,-1005.28391519,0.00028,7]
[324940159,1714452643501,-1050.48085838,0.00028,7]
[324940160,1714452643575,-309.94763302,0.00028,7]
[324940172,1714452840507,300.0,0.00014728,2]
[324940174,1714453740522,300.0,0.00014728,2]
[324940640,1714453843754,-330.7036142,0.00018042,2]
[324940654,1714453848401,-1891.97802376,0.00018041,2]
[324940655,1714453848411,-19866.96394019,0.00018042,2]
[324940656,1714453848420,-6199.46507357,0.00018043,2]
[324940657,1714453867359,548.37810769,9.999e-05,2]
[324940658,1714453867382,134.94965345,9.999e-05,2]
[324940659,1714453889698,321.76419398,0.00014728,2]
[324940660,1714453905363,981.71883548,9.999e-05,2]
[324940661,1714453922897,154.78330338,9.999e-05,2]
[324940662,1714453965790,314.81328207,9.999e-05,2]
[324940663,1714453982390,475.26109045,9.999e-05,2]
[324940664,1714454012319,468.95037876,9.999e-05,2]
[324940665,1714454032036,730.70803192,0.000138,2]
[324940666,1714454100484,300.0,0.00014728,2]
[324940667,1714454116204,283.88872993,9.999e-05,2]
[324940668,1714454236901,24900.0,0.00015485,2]
[324940669,1714454290380,269.19157204,0.00014573,2]
[324940670,1714454293208,928.69749977,0.00014,2]
[324940671,1714454311256,539.41511312,0.00015381,2]
[324940673,1714454393330,179.82,9.999e-05,2]
[324940674,1714454435708,280.68822047,0.00015381,2]
[324940675,1714454437957,285.61972535,0.00015381,2]
[324940676,1714454499614,206.27151449,9.999e-05,2]
[324940677,1714454504144,526.91179477,9.999e-05,2]
[324940678,1714454516492,160.723752,0.00015181,2]
[324940679,1714454529131,154.78330338,9.999e-05,2]
[324940680,1714454539708,354.53333669,9.999e-05,2]
[324940681,1714454547887,981.71883548,9.999e-05,2]
[324940682,1714454549053,1235.66976186,0.00015,2]
[324940683,1714454549948,212.29957186,9.999e-05,2]
[324940684,1714454559105,1891.97802376,9.999e-05,2]
[324940685,1714454566988,475.26109045,9.999e-05,2]
[324940686,1714454583102,588.25248015,0.00016,2]
[324940687,1714454583927,401.33663923,9.999e-05,2]
[324940688,1714454590409,193.8405085,9.999e-05,2]
[324940689,1714454601745,283.88872993,9.999e-05,2]
[324940690,1714454608017,583.61077291,9.999e-05,2]
[324940691,1714454614086,154.78330338,9.999e-05,2]
[324940692,1714454619761,550.09434991,9.999e-05,2]
[324940693,1714454631918,235.83612481,9.999e-05,2]
[324940694,1714454651245,308.84790387,9.999e-05,2]
[324940695,1714454652066,2626.44647443,9.999e-05,2]
[324940696,1714454654678,890.92384481,9.999e-05,2]
[324940697,1714454670827,939.47409396,0.00015,2]
[324940698,1714454671663,547.96894012,9.999e-05,2]
[324940699,1714454680457,154.78330338,9.999e-05,2]
[324940700,1714454685354,154.78330338,9.999e-05,2]
[324940701,1714454690593,1313.2113406,0.0001,2]
[324940702,1714454699037,522.12800672,9.999e-05,2]
[324940703,1714454700558,300.0,0.00014728,2]
[324940704,1714454708587,164.09674352,9.999e-05,2]
[324940705,1714454712580,1491.90719486,9.999e-05,2]
[324940706,1714454712990,1677.91034586,0.00015,2]
[324940707,1714454715471,157.96527869,9.999e-05,2]
[324940708,1714454719232,2807.5535999,9.998e-05,2]
[324940709,1714454721235,208.1175851,9.998e-05,2]
[324940710,1714454727082,24900.0,0.00015067,2]
[324940711,1714454727463,186.32922869,9.999e-05,2]
[324940712,1714454749193,718.63486199,9.999e-05,2]
[324940713,1714454777533,154.78330338,9.999e-05,2]
[324940714,1714454780117,154.78330338,9.999e-05,2]
[324940715,1714454780904,468.95037876,9.999e-05,2]
[324940716,1714454824255,181.60175759,9.999e-05,2]
[324940717,1714454831178,14724.19468211,9.999e-05,2]
[324940718,1714454870563,159.44951346,9.999e-05,2]
[324940719,1714454888792,543.97551782,9.999e-05,2]
[324940723,1714454917406,154.78330338,9.999e-05,2]
[324940724,1714454924765,165.35503725,9.999e-05,2]
[324940728,1714454943846,1878.97762926,0.00015976,2]
[324940730,1714454969740,526.91179477,9.999e-05,2]
[324940731,1714454972456,154.88422095,9.999e-05,2]
[324940732,1714454983762,206.27151449,9.999e-05,2]
[324940735,1714455010553,475.26109045,9.999e-05,2]
[324940736,1714455028773,354.53333669,9.999e-05,2]
[324940737,1714455029502,981.71883548,9.999e-05,2]
[324940738,1714455031025,212.29957186,9.999e-05,2]
[324940796,1714455037318,283.88872993,9.999e-05,2]
[324940806,1714455038132,-890.92384481,0.00015868,2]
[324940807,1714455038141,-1633.8733591,0.00015869,2]
[324940808,1714455038150,-502.04243949,0.00015966,2]
[324940809,1714455038159,-522.12800672,0.00015966,2]
[324940810,1714455038169,-157.96527869,0.00015967,2]
[324940811,1714455038178,-15674.62704148,0.00015967,2]
[324940812,1714455038187,-2101.40475036,0.00015967,2]
[324940813,1714455038197,-235.83612481,0.00015968,2]
[324940814,1714455038206,-154.78330338,0.00015968,2]
[324940815,1714455038215,-193.8405085,0.00015968,2]
[324940816,1714455038225,-20197.66755439,0.00015968,2]
[324940817,1714455038234,-1491.90719486,0.00015969,2]
[324940818,1714455038244,-300.0,0.00015969,2]
[324940819,1714455038253,-1879.86291368,0.00015969,2]
[324940820,1714455038263,-1891.97802376,0.0001597,2]
[324940821,1714455038272,-2590.391884,0.0001597,2]
[324940822,1714455038281,-154.78330338,0.0001597,2]
[324940823,1714455038291,-2626.7215223,0.00015971,2]
[324940824,1714455038303,-1677.91034586,0.00015971,2]
[324940825,1714455038312,-1313.2113406,0.00015971,2]
[324940826,1714455038321,-7874.43916616,0.00015971,2]
[324940827,1714455038331,-526.91179477,0.00015973,2]
[324940828,1714455038340,-216.6690089,0.00015973,2]
[324940829,1714455038349,-59218.78804834,0.00015974,2]
[324940830,1714455038358,-1814.57905073,0.00015976,2]
[324940831,1714455038367,-617.9623936,0.00016058,2]
[324940832,1714455038377,-155.16551276,0.00016058,2]
[324940833,1714455038386,-161.87992514,0.00016058,2]
[324940834,1714455038395,-546.42944383,0.00016059,2]
[324940835,1714455038405,-187.41619753,0.00016061,2]
[324940836,1714455038414,-164.37406154,0.00016063,2]
[324940837,1714455038423,-155.14451168,0.00016063,2]
[324940838,1714455038433,-682.14820947,0.00016063,2]
[324940839,1714455038442,-1645.78338161,0.00016063,2]
[324940840,1714455038452,-359.81922244,0.00016063,2]
[324940841,1714455038461,-208.37438676,0.00016063,2]
[324940842,1714455038470,-159.01440202,0.00016066,2]
[324940843,1714455038480,-155.0466164,0.00016066,2]
[324940844,1714455038490,-306.08880035,0.00016066,2]
[324940845,1714455038499,-155.95115318,0.00016066,2]
[324940846,1714455038509,-265.38806177,0.00016067,2]
[324940847,1714455038519,-1550.75743702,0.00016067,2]
[324940848,1714455038529,-155.30384566,0.00016071,2]
[324940849,1714455038538,-159.59782867,0.00016071,2]
[324940850,1714455038551,-968.6376268,0.00016071,2]
[324940851,1714455038562,-191.92615988,0.00016071,2]
[324940852,1714455038572,-410.03264152,0.00016071,2]
[324940853,1714455038582,-225.92697873,0.00016071,2]
[324940854,1714455038591,-250.50179526,0.00016071,2]
[324940855,1714455038602,-235.46442127,0.00016071,2]
[324940856,1714455038611,-230.69210891,0.00016071,2]
[324940857,1714455038621,-294.08994501,0.00016075,2]
[324940858,1714455038630,-302.96091327,0.00016076,2]
[324940859,1714455038645,-155.62299292,0.00016076,2]
[324940860,1714455038666,-331.10268648,0.00016076,2]
[324940861,1714455038676,-362.75673293,0.00016076,2]
[324940862,1714455038685,-1839.12590034,0.00016076,2]
[324940863,1714455038694,-1054.1019421,0.00016076,2]
[324940864,1714455038704,-155.0816177,0.00016076,2]
[324940865,1714455038713,-204.91238796,0.00016077,2]
[324940866,1714455038722,-455.89854304,0.00016174,2]
[324940867,1714455038732,-1092.99538453,0.00016174,2]
[324940868,1714455038741,-274.83761181,0.00016175,2]
[324940869,1714455038751,-191.51507127,0.00016175,2]
[324940870,1714455038760,-240.64111628,0.00016175,2]
[324940871,1714455038769,-601.23455231,0.00016175,2]
[324940872,1714455038779,-3502.198289,0.00016175,2]
[324940873,1714455038787,-3502.198289,0.00016175,2]
[324940874,1714455038798,-219.071959,0.00016175,2]
[324940875,1714455038808,-219.071959,0.00016175,2]
[324940876,1714455038817,-151.0,0.00016175,2]
[324940877,1714455038826,-155.17139673,0.00016178,2]
[324940878,1714455038835,-170.93807899,0.00016178,2]
[324940879,1714455038844,-155.89384204,0.00016178,2]
[324940880,1714455038853,-307.028517,0.00016179,2]
[324940881,1714455038863,-229.67909429,0.0001618,2]
[324940882,1714455038871,-272.83575254,0.000165,2]
[324940883,1714455038880,-420.0,0.00017566,2]
[324940884,1714455038889,-3693.55667999,0.00017582,2]
[324940885,1714455038899,-189.3964787,0.00018,2]
[324940886,1714455038908,-202.85160131,0.00018,2]
[324940887,1714455038917,-201.27629541,0.00018043,2]
[324940888,1714455038926,-287.2057656,0.00018043,2]
[324940889,1714455038935,-155.05036946,0.00018043,2]
[324940890,1714455038944,-188.57150822,0.00018043,2]
[324940891,1714455038953,-310.56701575,0.00018043,2]
[324940892,1714455038963,-154.9901711,0.00018044,2]
[324940893,1714455038972,-155.24232373,0.00018046,2]
[324940894,1714455038981,-155.05188981,0.00018046,2]
[324940895,1714455038990,-875.40390416,0.00018046,2]
[324940896,1714455039000,-155.17062442,0.00018046,2]
[324940897,1714455039008,-2465.05916123,0.00018046,2]
[324940898,1714455039018,-155.42064574,0.00018046,2]
[324940899,1714455039027,-312.83743319,0.00018046,2]
[324940900,1714455039036,-603.84859883,0.000185,2]
[324940901,1714455039048,-3853.82848655,0.000189,2]
[324940902,1714455039057,-219.071959,0.000189,2]
[324940903,1714455039066,-219.071959,0.000189,2]
[324940904,1714455039075,-151.0,0.000189,2]
[324940905,1714455039084,-2381.22,0.0001899,3]
[324940906,1714455039093,-235.95222024,0.00019,2]
[324940907,1714455039103,-7961.49358741,0.00019,2]
[324940908,1714455039112,-151.0,0.00019,2]
[324940909,1714455039122,-368.215691,0.00019,2]
[324940910,1714455039131,-368.215691,0.00019,2]
[324940911,1714455039141,-375.047859,0.00019,2]
[324940912,1714455039150,-151.0,0.00019,2]
[324940913,1714455039162,-375.047859,0.00019,2]
[324940914,1714455039171,-151.0,0.00019,2]
[324940915,1714455039181,-3886.673384,0.00019,2]
[324940916,1714455039190,-3886.673384,0.00019,2]
[324940917,1714455039199,-151.0,0.00019,2]
[324940918,1714455039208,-3502.198289,0.00019,2]
[324940919,1714455039218,-3502.198289,0.00019,2]
[324940920,1714455039227,-219.071959,0.00019,2]
[324940921,1714455039237,-219.071959,0.00019,2]
[324940922,1714455039246,-151.0,0.00019,2]
[324940923,1714455039255,-500.0,0.00019178,2]
[324940924,1714455039264,-219.31234042,0.00019178,2]
[324940925,1714455039273,-500.0,0.00019178,2]
[324940926,1714455039282,-500.0,0.00019178,2]
[324940927,1714455039291,-206.63070974,0.00019178,2]
[324940928,1714455039304,-500.0,0.00019178,2]
[324940929,1714455039313,-500.0,0.00019178,2]
[324940930,1714455039322,-257.29627275,0.00019178,2]
[324940931,1714455039331,-553.83392569,0.00019178,2]
[324940932,1714455039340,-500.0,0.00019178,2]
[324940933,1714455039349,-189.42852787,0.00019178,2]
[324940934,1714455039358,-513.54955731,0.00019178,2]
[324940935,1714455039367,-500.46173256,0.00019178,2]
[324940936,1714455039377,-462.76943703,0.00019178,2]
[324940937,1714455039386,-172.64821396,0.00019178,2]
[324940938,1714455039395,-503.7776499,0.00019178,2]
[324940939,1714455039405,-626.76190904,0.00019178,2]
[324940940,1714455039415,-500.0,0.00019178,2]